[Event "Austria Championship Blitz 2024"]
[Site "Innsbruck"]
[Date "2024.06.01"]
[Round "9.8"]
[White "Myagmarsuren, Mandukhai"]
[Black "Casagrande, Harald"]
[Result "1-0"]
[ECO "A50"]
[WhiteElo "2092"]
[BlackElo "2290"]
[Annotator "RC"]
[PlyCount "49"]
[EventDate "2024.06.01"]
[EventType "swiss"]
[EventCountry "AUT"]
[SourceTitle "playchess.com"]
[Source "ChessBase"]
[SourceQuality "1"]
[TimeControl "180+2"]

1. d4 {[%emt 0:00:02]} Nf6 {[%emt 0:00:03]} 2. c4 {[%emt 0:00:01]} e6 {[%emt 0:00:03]} 3. Nc3 {[%emt 0:00:02]} b6 {[%emt 0:00:14]} 4. Qc2 {[%emt 0:00:04]} Bb7 {[%emt 0:00:04]} 5. e4 {[%emt 0:00:01]} Nc6 {[%emt 0:00:26]} 6. Nf3 {[%emt 0:00:02]} Nb4 {[%emt 0:00:07]} 7. Qb1 {[%emt 0:00:06]} d5 {[%emt 0:00:16]} 8. cxd5 {[%emt 0:00:14]} exd5 {[%emt 0:00:01]} 9. e5 {[%emt 0:00:10]} Nd7 {[%emt 0:00:53]} 10. a3 {[%emt 0:00:01]} Na6 {[%emt 0:00:13]} 11. Bb5 {[%emt 0:00:32]} c6 {[%emt 0:00:01]} 12. Ba4 {[%emt 0:00:02]} Nc7 {[%emt 0:00:04]} 13. O-O {[%emt 0:00:02]} Ne6 {[%emt 0:00:07]} 14. Qd3 {[%emt 0:00:22]} Be7 {[%emt 0:00:03]} 15. Ne1 {[%emt 0:00:24]} c5 {[%emt 0:00:08]} 16. Nc2 {[%emt 0:00:32]} cxd4 {[%emt 0:00:23]} 17. Nxd4 {[%emt 0:00:03]} O-O {[%emt 0:00:10]} 18. Nxe6 fxe6 {[%emt 0:00:01]} 19. Bc2 {[%emt 0:00:07]} g6 {[%emt 0:00:01]} 20. Qh3 {[%emt 0:00:08]} Nxe5 {[%emt 0:00:13]} 21. Qxe6+ {[%emt 0:00:02]} Nf7 {[%emt 0:00:00]} 22. Re1 {[%emt 0:00:11]} Bc5 {[%emt 0:00:03]} 23. Bxg6 {[%emt 0:00:20]} Qh4 {[%emt 0:00:05]} 24. g3 {[%emt 0:00:05]} Qh6 {[%emt 0:00:03]} 25. Bxf7+ {[%emt 0:00:01]} 1-0

[Event "Austria Championship Blitz 2024"]
[Site "Innsbruck"]
[Date "2024.06.01"]
[Round "9.9"]
[White "Hengl, Philip"]
[Black "Zanon, Magnus"]
[Result "1-0"]
[ECO "C01"]
[WhiteElo "2173"]
[BlackElo "2092"]
[Annotator "ChessBase"]
[PlyCount "244"]
[EventDate "2024.06.01"]
[EventType "swiss"]
[EventCountry "AUT"]
[SourceTitle "playchess.com"]
[Source "ChessBase"]
[SourceQuality "1"]
[TimeControl "180+2"]

1. e4 e6 {[%emt 0:03:04]} 2. d4 {[%emt 0:00:01]} d5 {[%emt 0:00:00]} 3. exd5 {[%emt 0:00:01]} exd5 {[%emt 0:00:00]} 4. Nf3 {[%emt 0:00:01]} Bd6 {[%emt 0:00:00]} 5. Bd3 {[%emt 0:00:02]} Ne7 {[%emt 0:00:00]} 6. O-O {[%emt 0:00:02]} Bg4 {[%emt 0:00:00]} 7. Bg5 {[%emt 0:00:06]} f6 {[%emt 0:00:00]} 8. Bh4 {[%emt 0:00:01]} g5 {[%emt 0:00:00]} 9. Bg3 {[%emt 0:00:01]} h5 {[%emt 0:00:00]} 10. Re1 {[%emt 0:00:16]} Qd7 {[%emt 0:00:00]} 11. Nbd2 {[%emt 0:00:13]} Nbc6 {[%emt 0:00:00]} 12. c3 {[%emt 0:00:01]} O-O-O {[%emt 0:00:00]} 13. Qc2 {[%emt 0:00:13]} h4 {[%emt 0:00:00]} 14. Bxd6 {[%emt 0:00:02]} Qxd6 {[%emt 0:00:00]} 15. h3 {[%emt 0:00:07]} Bd7 {[%emt 0:00:00]} 16. Nh2 {[%emt 0:00:11]} f5 {[%emt 0:00:00]} 17. b4 {[%emt 0:00:07]} Rdg8 {[%emt 0:00:00]} 18. b5 {[%emt 0:00:04]} Nb8 {[%emt 0:00:00]} 19. Ndf3 {[%emt 0:00:57]} g4 {[%emt 0:00:00]} 20. hxg4 {[%emt 0:00:01]} fxg4 {[%emt 0:00:00]} 21. Ne5 {[%emt 0:00:03]} g3 {[%emt 0:00:00]} 22. Nhf3 {[%emt 0:00:24]} h3 {[%emt 0:00:00]} 23. Nf7 {[%emt 0:00:36]} Qf6 {[%emt 0:00:00]} 24. Nxh8 {[%emt 0:00:04]} Rxh8 {[%emt 0:00:00]} 25. fxg3 {[%emt 0:00:05]} Nf5 {[%emt 0:00:00]} 26. Bxf5 {[%emt 0:00:02]} Bxf5 {[%emt 0:00:00]} 27. Qd2 {[%emt 0:00:05]} hxg2 {[%emt 0:00:00]} 28. Nh4 {[%emt 0:00:08]} Be4 {[%emt 0:00:01]} 29. Rxe4 {[%emt 0:00:01]} dxe4 {[%emt 0:00:01]} 30. Kxg2 {[%emt 0:00:01]} Rf8 {[%emt 0:00:20]} 31. Qe2 {[%emt 0:00:03]} Nd7 {[%emt 0:00:04]} 32. Rf1 {[%emt 0:00:01]} Qe6 {[%emt 0:00:20]} 33. Rxf8+ {[%emt 0:00:01]} Nxf8 {[%emt 0:00:00]} 34. c4 {[%emt 0:00:02]} Nd7 {[%emt 0:00:10]} 35. Kh2 {[%emt 0:00:04]} c6 {[%emt 0:00:01]} 36. bxc6 {[%emt 0:00:03]} bxc6 {[%emt 0:00:01]} 37. Ng2 {[%emt 0:00:01]} Qh6+ {[%emt 0:00:02]} 38. Kg1 {[%emt 0:00:01]} Nf6 {[%emt 0:00:01]} 39. Nf4 {[%emt 0:00:02]} Qg5 {[%emt 0:00:03]} 40. Kg2 {[%emt 0:00:03]} Qf5 {[%emt 0:00:04]} 41. Qc2 {[%emt 0:00:04]} Ng4 {[%emt 0:00:03]} 42. Qe2 {[%emt 0:00:01]} e3 {[%emt 0:00:03]} 43. Qf3 {[%emt 0:00:02]} Kc7 {[%emt 0:00:05]} 44. d5 {[%emt 0:00:01]} Qc2+ {[%emt 0:00:02]} 45. Qe2 {[%emt 0:00:01]} Qe4+ {[%emt 0:00:02]} 46. Qf3 {[%emt 0:00:01]} Qc2+ {[%emt 0:00:01]} 47. Qe2 {[%emt 0:00:01]} Qe4+ {[%emt 0:00:01]} 48. Kh3 {[%emt 0:00:02]} Nf2+ {[%emt 0:00:01]} 49. Kh4 {[%emt 0:00:02]} Qh7+ {[%emt 0:00:01]} 50. Kg5 {[%emt 0:00:01]} Qg7+ {[%emt 0:00:02]} 51. Kf5 {[%emt 0:00:01]} Qf7+ {[%emt 0:00:01]} 52. Ke5 {[%emt 0:00:01]} Qg7+ {[%emt 0:00:03]} 53. Kf5 {[%emt 0:00:02]} Qf7+ {[%emt 0:00:00]} 54. Kg5 {[%emt 0:00:01]} Qg7+ {[%emt 0:00:01]} 55. Kh4 {[%emt 0:00:02]} Qf6+ {[%emt 0:00:02]} 56. Kh5 {[%emt 0:00:03]} Qf5+ {[%emt 0:00:01]} 57. Kh6 {[%emt 0:00:02]} Ng4+ {[%emt 0:00:01]} 58. Kg7 {[%emt 0:00:01]} Qf6+ {[%emt 0:00:01]} 59. Kh7 {[%emt 0:00:02]} Qh6+ {[%emt 0:00:06]} 60. Kg8 {[%emt 0:00:01]} Nf6+ {[%emt 0:00:01]} 61. Kf7 {[%emt 0:00:01]} Nd7 {[%emt 0:00:05]} 62. Ne6+ {[%emt 0:00:02]} Kc8 {[%emt 0:00:02]} 63. dxc6 {[%emt 0:00:16]} Qf6+ {[%emt 0:00:02]} 64. Kg8 {[%emt 0:00:00]} Qxe6+ {[%emt 0:00:01]} 65. Kh7 {[%emt 0:00:00]} Qxc6 {[%emt 0:00:01]} 66. Qxe3 {[%emt 0:00:00]} Qxc4 {[%emt 0:00:02]} 67. Qxa7 {[%emt 0:00:01]} Qf7+ {[%emt 0:00:03]} 68. Kh6 {[%emt 0:00:01]} Qf6+ {[%emt 0:00:04]} 69. Kh5 {[%emt 0:00:02]} Qf5+ {[%emt 0:00:01]} 70. Kh4 {[%emt 0:00:01]} Qf6+ {[%emt 0:00:04]} 71. Kh3 {[%emt 0:00:02]} Qh6+ {[%emt 0:00:01]} 72. Kg2 {[%emt 0:00:01]} Qd2+ {[%emt 0:00:01]} 73. Kg1 {[%emt 0:00:03]} Qe1+ {[%emt 0:00:04]} 74. Kg2 {[%emt 0:00:01]} Qd2+ {[%emt 0:00:00]} 75. Qf2 {[%emt 0:00:02]} Qd5+ {[%emt 0:00:02]} 76. Kh2 {[%emt 0:00:03]} Qh5+ {[%emt 0:00:01]} 77. Kg2 {[%emt 0:00:01]} Qd5+ {[%emt 0:00:01]} 78. Kg1 {[%emt 0:00:01]} Qd1+ {[%emt 0:00:02]} 79. Qf1 {[%emt 0:00:00]} Qd4+ {[%emt 0:00:01]} 80. Kh2 {[%emt 0:00:02]} Qd2+ {[%emt 0:00:02]} 81. Qg2 {[%emt 0:00:01]} Qh6+ {[%emt 0:00:01]} 82. Kg1 {[%emt 0:00:02]} Qc1+ {[%emt 0:00:01]} 83. Qf1 {[%emt 0:00:02]} Qe3+ {[%emt 0:00:02]} 84. Qf2 {[%emt 0:00:06]} Qc1+ {[%emt 0:00:03]} 85. Kg2 {[%emt 0:00:02]} Qc6+ {[%emt 0:00:02]} 86. Qf3 {[%emt 0:00:02]} Qc2+ {[%emt 0:00:01]} 87. Qf2 {[%emt 0:00:05]} Qc6+ {[%emt 0:00:01]} 88. Kf1 {[%emt 0:00:02]} Qc1+ {[%emt 0:00:01]} 89. Qe1 {[%emt 0:00:01]} Qc4+ {[%emt 0:00:03]} 90. Qe2 {[%emt 0:00:02]} Qc1+ {[%emt 0:00:01]} 91. Kf2 {[%emt 0:00:00]} Qc5+ {[%emt 0:00:02]} 92. Qe3 {[%emt 0:00:01]} Qc2+ {[%emt 0:00:01]} 93. Qe2 {[%emt 0:00:03]} Qc5+ {[%emt 0:00:03]} 94. Kg2 {[%emt 0:00:02]} Qd5+ {[%emt 0:00:01]} 95. Kh2 {[%emt 0:00:02]} Ne5 {[%emt 0:00:11]} 96. Qc2+ {[%emt 0:00:03]} Kd7 {[%emt 0:00:01]} 97. Qf5+ {[%emt 0:00:02]} Kd6 {[%emt 0:00:01]} 98. Qf6+ {[%emt 0:00:01]} Kc5 {[%emt 0:00:02]} 99. Qf2+ {[%emt 0:00:02]} Kd6 {[%emt 0:00:03]} 100. Qb6+ {[%emt 0:00:01]} Ke7 {[%emt 0:00:04]} 101. Qb4+ {[%emt 0:00:05]} Kf6 {[%emt 0:00:01]} 102. Qf4+ {[%emt 0:00:01]} Ke6 {[%emt 0:00:01]} 103. Qh6+ {[%emt 0:00:01]} Kd7 {[%emt 0:00:01]} 104. Qg7+ {[%emt 0:00:02]} Qf7 {[%emt 0:00:03]} 105. Qxe5 {[%emt 0:00:00]} Qxa2+ {[%emt 0:00:00]} 106. Kh3 {[%emt 0:00:00]} Qg8 {[%emt 0:00:04]} 107. Qf5+ {[%emt 0:00:00]} Kc7 {[%emt 0:00:04]} 108. g4 {[%emt 0:00:00]} Qh8+ {[%emt 0:00:01]} 109. Kg3 {[%emt 0:00:00]} Qc3+ {[%emt 0:00:03]} 110. Qf3 {[%emt 0:00:00]} Qe1+ {[%emt 0:00:04]} 111. Kf4 {[%emt 0:00:00]} Qd2+ {[%emt 0:00:01]} 112. Kf5 {[%emt 0:00:00]} Qa5+ {[%emt 0:00:03]} 113. Kg6 {[%emt 0:00:00]} Qb6+ {[%emt 0:00:01]} 114. Kh5 {[%emt 0:00:00]} Qc5+ {[%emt 0:00:02]} 115. Qf5 {[%emt 0:00:00]} Qg1 {[%emt 0:00:01]} 116. g5 {[%emt 0:00:00]} Qh2+ {[%emt 0:00:01]} 117. Kg6 {[%emt 0:00:00]} Kd8 {[%emt 0:00:02]} 118. Qd5+ {[%emt 0:00:00]} Ke7 {[%emt 0:00:02]} 119. Qf7+ {[%emt 0:00:00]} Kd6 {[%emt 0:00:01]} 120. Qf6+ {[%emt 0:00:00]} Kd7 {[%emt 0:00:01]} 121. Kg7 {[%emt 0:00:00]} Qb8 {[%emt 0:00:05]} 122. g6 {[%emt 0:00:00]} Qb1 {[%emt 0:00:09]} 1-0

[Event "Austria Championship Blitz 2024"]
[Site "Innsbruck"]
[Date "2024.06.01"]
[Round "9.10"]
[White "Kienboeck, Benjamin"]
[Black "Polterauer, Chiara"]
[Result "1/2-1/2"]
[ECO "C78"]
[WhiteElo "2187"]
[BlackElo "2136"]
[Annotator "RC"]
[PlyCount "133"]
[EventDate "2024.06.01"]
[EventType "swiss"]
[EventCountry "AUT"]
[SourceTitle "playchess.com"]
[Source "ChessBase"]
[SourceQuality "1"]
[TimeControl "180+2"]

1. e4 {[%emt 0:00:02]} e5 {[%emt 0:00:01]} 2. Nf3 {[%emt 0:00:02]} Nc6 {[%emt 0:00:01]} 3. Bb5 {[%emt 0:00:01]} a6 {[%emt 0:00:01]} 4. Ba4 {[%emt 0:00:00]} Nf6 {[%emt 0:00:01]} 5. O-O {[%emt 0:00:02]} b5 {[%emt 0:00:01]} 6. Bb3 {[%emt 0:00:01]} Bc5 {[%emt 0:00:00]} 7. d3 {[%emt 0:00:19]} d6 {[%emt 0:00:02]} 8. c3 {[%emt 0:00:04]} h6 {[%emt 0:00:11]} 9. a4 {[%emt 0:00:05]} Rb8 {[%emt 0:00:01]} 10. Nbd2 {[%emt 0:00:06]} O-O {[%emt 0:00:04]} 11. h3 {[%emt 0:00:02]} Bb6 {[%emt 0:00:11]} 12. Re1 {[%emt 0:00:03]} Ne7 {[%emt 0:00:02]} 13. Nf1 {[%emt 0:00:02]} Ng6 {[%emt 0:00:02]} 14. Ng3 {[%emt 0:00:12]} Re8 {[%emt 0:00:03]} 15. Be3 {[%emt 0:00:11]} Bxe3 {[%emt 0:00:11]} 16. Rxe3 {[%emt 0:00:03]} c5 {[%emt 0:00:12]} 17. Bc2 {[%emt 0:00:12]} Nf4 {[%emt 0:00:10]} 18. axb5 {[%emt 0:00:06]} axb5 {[%emt 0:00:01]} 19. d4 {[%emt 0:00:25]} cxd4 {[%emt 0:00:16]} 20. cxd4 {[%emt 0:00:01]} Qb6 {[%emt 0:00:18]} 21. Ne2 {[%emt 0:00:45]} N6h5 {[%emt 0:00:23]} 22. Kh2 {[%emt 0:00:22]} Nxe2 {[%emt 0:00:15]} 23. Rxe2 {[%emt 0:00:05]} Nf4 {[%emt 0:00:02]} 24. Rd2 {[%emt 0:00:01]} b4 {[%emt 0:00:13]} 25. dxe5 {[%emt 0:00:16]} dxe5 {[%emt 0:00:03]} 26. Bb3 {[%emt 0:00:01]} Be6 {[%emt 0:00:12]} 27. Bxe6 {[%emt 0:00:08]} Nxe6 {[%emt 0:00:12]} 28. g3 {[%emt 0:00:09]} Nc5 {[%emt 0:00:10]} 29. Rd6 {[%emt 0:00:09]} Qb5 {[%emt 0:00:05]} 30. Qe1 {[%emt 0:00:02]} Nb3 {[%emt 0:00:13]} 31. Rad1 {[%emt 0:00:00]} Qa5 {[%emt 0:00:07]} 32. R6d5 {[%emt 0:00:01]} Qc7 {[%emt 0:00:01]} 33. Kg2 {[%emt 0:00:02]} Na5 {[%emt 0:00:06]} 34. Rc1 {[%emt 0:00:01]} Qb6 {[%emt 0:00:01]} 35. Qd2 {[%emt 0:00:02]} Rbd8 {[%emt 0:00:03]} 36. Rd1 {[%emt 0:00:02]} Rxd5 {[%emt 0:00:04]} 37. Qxd5 {[%emt 0:00:01]} Nc6 {[%emt 0:00:02]} 38. Rc1 {[%emt 0:00:02]} Nd4 {[%emt 0:00:02]} 39. Nxd4 {[%emt 0:00:02]} exd4 {[%emt 0:00:01]} 40. Rc6 {[%emt 0:00:02]} Qa7 {[%emt 0:00:01]} 41. Rc4 {[%emt 0:00:01]} Qa2 {[%emt 0:00:05]} 42. Rxd4 {[%emt 0:00:02]} Qxb2 {[%emt 0:00:01]} 43. Qd7 {[%emt 0:00:03]} Rf8 {[%emt 0:00:02]} 44. Qd6 {[%emt 0:00:03]} Qc2 {[%emt 0:00:03]} 45. Qxb4 {[%emt 0:00:02]} Re8 {[%emt 0:00:03]} 46. Qb7 {[%emt 0:00:05]} Qc3 {[%emt 0:00:04]} 47. Qd5 {[%emt 0:00:02]} Qc2 {[%emt 0:00:02]} 48. e5 {[%emt 0:00:01]} Qf5 {[%emt 0:00:01]} 49. Re4 {[%emt 0:00:05]} Qg6 {[%emt 0:00:04]} 50. Qd4 {[%emt 0:00:01]} Qe6 {[%emt 0:00:01]} 51. g4 {[%emt 0:00:02]} Qa2 {[%emt 0:00:03]} 52. Re3 {[%emt 0:00:01]} Qe6 {[%emt 0:00:02]} 53. Qe4 {[%emt 0:00:02]} Qa2 {[%emt 0:00:02]} 54. Kg3 {[%emt 0:00:01]} Qe6 {[%emt 0:00:01]} 55. f4 {[%emt 0:00:02]} Qa2 {[%emt 0:00:03]} 56. Qc6 {[%emt 0:00:02]} Rf8 {[%emt 0:00:04]} 57. e6 {[%emt 0:00:02]} fxe6 {[%emt 0:00:02]} 58. Qxe6+ {[%emt 0:00:01]} Qxe6 {[%emt 0:00:01]} 59. Rxe6 {[%emt 0:00:01]} Ra8 {[%emt 0:00:02]} 60. Kh4 {[%emt 0:00:03]} Kf7 {[%emt 0:00:01]} 61. Rb6 {[%emt 0:00:01]} Ra7 {[%emt 0:00:01]} 62. f5 {[%emt 0:00:02]} Rc7 {[%emt 0:00:02]} 63. Kh5 {[%emt 0:00:03]} Ra7 {[%emt 0:00:05]} 64. f6 {[%emt 0:00:06]} Ra5+ {[%emt 0:00:04]} 65. Kh4 {[%emt 0:00:02]} gxf6 {[%emt 0:00:00]} 66. Rb7+ {[%emt 0:00:02]} Kg6 {[%emt 0:00:01]} 67. Rb6 {[%emt 0:00:06]} 1/2-1/2

[Event "Austria Championship Blitz 2024"]
[Site "Innsbruck"]
[Date "2024.06.01"]
[Round "9.11"]
[White "Vrban, Damir"]
[Black "Tumanyan, Gor"]
[Result "1/2-1/2"]
[ECO "B24"]
[WhiteElo "2151"]
[BlackElo "1992"]
[Annotator "RC"]
[PlyCount "49"]
[EventDate "2024.06.01"]
[EventType "swiss"]
[EventCountry "AUT"]
[SourceTitle "playchess.com"]
[Source "ChessBase"]
[SourceQuality "1"]
[TimeControl "180+2"]

1. e4 {[%emt 0:00:03]} c5 {[%emt 0:00:00]} 2. Nc3 {[%emt 0:00:05]} Nc6 {[%emt 0:00:04]} 3. g3 {[%emt 0:00:03]} g6 {[%emt 0:00:01]} 4. Bg2 {[%emt 0:00:01]} Bg7 {[%emt 0:00:01]} 5. Nge2 {[%emt 0:00:03]} d6 {[%emt 0:00:03]} 6. a3 {[%emt 0:00:12]} Nf6 {[%emt 0:00:20]} 7. Rb1 {[%emt 0:00:07]} a5 {[%emt 0:00:20]} 8. O-O {[%emt 0:00:07]} O-O {[%emt 0:00:02]} 9. d3 {[%emt 0:00:02]} Bd7 {[%emt 0:00:32]} 10. h3 {[%emt 0:00:16]} Rb8 {[%emt 0:00:22]} 11. Bg5 {[%emt 0:00:08]} b5 {[%emt 0:00:18]} 12. a4 {[%emt 0:00:12]} Nd4 {[%emt 0:00:25]} 13. Nxb5 {[%emt 0:00:24]} Nxb5 {[%emt 0:00:04]} 14. axb5 {[%emt 0:00:02]} Rxb5 {[%emt 0:00:19]} 15. b3 {[%emt 0:00:17]} h6 {[%emt 0:00:06]} 16. Bd2 {[%emt 0:00:05]} Qc7 {[%emt 0:00:03]} 17. Qc1 {[%emt 0:00:12]} Kh7 {[%emt 0:00:02]} 18. Qa3 {[%emt 0:00:07]} Bc6 {[%emt 0:00:29]} 19. Nc3 {[%emt 0:00:05]} Rbb8 {[%emt 0:00:03]} 20. Ra1 {[%emt 0:00:02]} Ra8 {[%emt 0:00:01]} 21. Ra2 {[%emt 0:00:12]} Ra7 {[%emt 0:00:01]} 22. Rfa1 {[%emt 0:00:09]} Rfa8 {[%emt 0:00:01]} 23. Qc1 {[%emt 0:00:03]} Qb7 {[%emt 0:00:04]} 24. Qe1 {[%emt 0:00:09]} Nd7 {[%emt 0:00:01]} 25. Kh2 {[%emt 0:00:22]} 1/2-1/2

[Event "Austria Championship Blitz 2024"]
[Site "Innsbruck"]
[Date "2024.06.01"]
[Round "9.12"]
[White "Schwarz, Benedikt"]
[Black "Gschiel, Alexander"]
[Result "0-1"]
[ECO "D00"]
[WhiteElo "1919"]
[BlackElo "2355"]
[Annotator "RC"]
[PlyCount "86"]
[EventDate "2024.06.01"]
[EventType "swiss"]
[EventCountry "AUT"]
[SourceTitle "playchess.com"]
[Source "ChessBase"]
[SourceQuality "1"]
[TimeControl "180+2"]

1. d4 {[%emt 0:00:02]} Nf6 {[%emt 0:00:02]} 2. Bf4 {[%emt 0:00:01]} e6 {[%emt 0:00:02]} 3. e3 {[%emt 0:00:02]} d5 {[%emt 0:00:02]} 4. c3 {[%emt 0:00:01]} Bd6 {[%emt 0:00:01]} 5. Bg3 {[%emt 0:00:01]} O-O {[%emt 0:00:02]} 6. Nd2 {[%emt 0:00:01]} c5 {[%emt 0:00:01]} 7. Ngf3 {[%emt 0:00:01]} Qc7 {[%emt 0:00:03]} 8. Ne5 {[%emt 0:00:04]} Nc6 {[%emt 0:00:15]} 9. f4 {[%emt 0:00:03]} Ne4 {[%emt 0:00:05]} 10. Nxe4 {[%emt 0:00:07]} dxe4 {[%emt 0:00:01]} 11. Be2 {[%emt 0:00:16]} cxd4 {[%emt 0:00:05]} 12. cxd4 {[%emt 0:00:18]} Bb4+ {[%emt 0:00:02]} 13. Kf2 {[%emt 0:00:00]} Ne7 {[%emt 0:00:13]} 14. a3 {[%emt 0:00:04]} Bd6 {[%emt 0:00:05]} 15. Qb3 {[%emt 0:00:25]} Nd5 {[%emt 0:00:11]} 16. Rhc1 {[%emt 0:00:05]} Qe7 {[%emt 0:00:02]} 17. Bc4 {[%emt 0:00:10]} Nb6 {[%emt 0:00:18]} 18. Be2 {[%emt 0:00:02]} Kh8 {[%emt 0:00:08]} 19. Nc4 {[%emt 0:00:07]} Bc7 {[%emt 0:00:17]} 20. Nxb6 {[%emt 0:00:02]} Bxb6 {[%emt 0:00:01]} 21. Kg1 {[%emt 0:00:18]} f6 {[%emt 0:00:01]} 22. Rc4 {[%emt 0:00:06]} e5 {[%emt 0:00:04]} 23. Rb4 {[%emt 0:00:19]} exd4 {[%emt 0:00:08]} 24. exd4 {[%emt 0:00:05]} Be6 {[%emt 0:00:10]} 25. Qe3 {[%emt 0:00:05]} f5 {[%emt 0:00:02]} 26. Rc1 {[%emt 0:01:09]} Rac8 27. Bc4 {[%emt 0:00:00]} Qf6 {[%emt 0:00:09]} 28. Bxe6 {[%emt 0:00:00]} Bxd4 {[%emt 0:00:25]} 29. Rxd4 {[%emt 0:00:00]} Rxc1+ {[%emt 0:00:01]} 30. Qxc1 {[%emt 0:00:00]} Qxd4+ {[%emt 0:00:03]} 31. Bf2 {[%emt 0:00:00]} Qd6 {[%emt 0:00:05]} 32. Ba2 {[%emt 0:00:00]} Rd8 {[%emt 0:00:04]} 33. Bxa7 {[%emt 0:00:00]} Qd1+ {[%emt 0:00:04]} 34. Qxd1 {[%emt 0:00:00]} Rxd1+ {[%emt 0:00:01]} 35. Kf2 {[%emt 0:00:00]} Rd2+ {[%emt 0:00:01]} 36. Kg3 {[%emt 0:00:00]} Rxb2 {[%emt 0:00:01]} 37. Be6 {[%emt 0:00:00]} Rb5 {[%emt 0:00:12]} 38. Bd7 {[%emt 0:00:09]} Ra5 {[%emt 0:00:02]} 39. Bb6 {[%emt 0:00:02]} Rxa3+ {[%emt 0:00:02]} 40. Kf2 {[%emt 0:00:01]} Ra2+ {[%emt 0:00:00]} 41. Kg3 {[%emt 0:00:02]} Rb2 {[%emt 0:00:00]} 42. Bd4 {[%emt 0:00:03]} Rd2 {[%emt 0:00:00]} 43. Bf2 {[%emt 0:00:05]} Rxd7 {[%emt 0:00:00]} 0-1

[Event "Austria Championship Blitz 2024"]
[Site "Innsbruck"]
[Date "2024.06.01"]
[Round "9.13"]
[White "Horvath, Reka"]
[Black "Teuschler, Barbara"]
[Result "1-0"]
[ECO "C41"]
[WhiteElo "2009"]
[BlackElo "2040"]
[Annotator "RC"]
[PlyCount "53"]
[EventDate "2024.06.01"]
[EventType "swiss"]
[EventCountry "AUT"]
[SourceTitle "playchess.com"]
[Source "ChessBase"]
[SourceQuality "1"]
[TimeControl "180+2"]

1. e4 {[%emt 0:00:02]} e5 {[%emt 0:00:00]} 2. Nf3 {[%emt 0:03:04]} d6 {[%emt 0:00:01]} 3. d4 {[%emt 0:00:00]} exd4 4. Nxd4 Nf6 5. Nc3 {[%emt 0:00:00]} Be7 {[%emt 0:00:01]} 6. Bc4 {[%emt 0:00:00]} O-O {[%emt 0:00:02]} 7. Bb3 {[%emt 0:00:00]} Re8 {[%emt 0:00:06]} 8. O-O {[%emt 0:00:00]} c6 {[%emt 0:00:15]} 9. h3 {[%emt 0:00:00]} h6 {[%emt 0:00:11]} 10. a4 {[%emt 0:00:00]} Bf8 {[%emt 0:00:01]} 11. Re1 {[%emt 0:00:00]} Nbd7 {[%emt 0:00:01]} 12. Ba2 {[%emt 0:00:00]} Nc5 {[%emt 0:00:02]} 13. Qf3 {[%emt 0:00:00]} d5 {[%emt 0:00:16]} 14. e5 {[%emt 0:00:00]} Qb6 {[%emt 0:01:08]} 15. Bxh6 {[%emt 0:00:00]} gxh6 {[%emt 0:00:20]} 16. exf6 {[%emt 0:00:00]} Bd7 {[%emt 0:00:17]} 17. Qg3+ {[%emt 0:00:00]} Kh7 {[%emt 0:00:02]} 18. b3 {[%emt 0:00:00]} Ne4 {[%emt 0:00:02]} 19. Nxe4 {[%emt 0:00:00]} Qxd4 {[%emt 0:00:01]} 20. c3 {[%emt 0:00:00]} Qb6 {[%emt 0:00:17]} 21. Ng5+ {[%emt 0:00:00]} hxg5 {[%emt 0:00:13]} 22. Qxg5 {[%emt 0:00:00]} Re4 {[%emt 0:00:14]} 23. Bb1 {[%emt 0:00:02]} Bh6 {[%emt 0:00:06]} 24. Qh5 {[%emt 0:00:03]} Rf8 {[%emt 0:00:07]} 25. Rxe4 {[%emt 0:00:03]} dxe4 26. Bxe4+ {[%emt 0:00:01]} Kg8 {[%emt 0:00:04]} 27. Qxh6 {[%emt 0:00:03]} 1-0